Cogmind - Beta 11.1 @@@ ROGUE MODE // 2022.04.30 @ 15:13:04 Player: Stryker Result: Destroyed by P-80 Master with Gamma Rifle Performance ------------- Evolutions (9) 4500 Regions Visited (27) 5400 Robots Destroyed (136) 680 Value Destroyed (5098) 5098 Prototype IDs (72) 1440 Alien Tech Used (10) 2000 Bonus (14891) 14891 TOTAL SCORE: 34009 Bonus ------- High Alert Combat Kills 144 Follower Combat Kills 647 Entered DSFs 500 Met Data Miner 300 Met Zhirov 300 Met Warlord at Base 500 MAIN.C Attacked Warlord 500 Met Warlord at Research 2000 Met MAIN.C 5000 Destroyed MAIN.C Shell 5000 Cogmind --------- Core Integrity 0/1600 Matter 415/425 Energy 314/700 System Corruption 21% Temperature Cool (20) Movement Hovering (37) Location -1/Command Parts ------- > --- POWER (2) -------- Vortex Chain Reactor > --- PROPULSION (9) --- Cooled Gravmag System Improved Antigrav System Improved Gyrokinetic Inverter Cooled Antigrav System Combat Antigrav System Antigrav Array Antigrav Array > --- UTILITY (10) ----- Large Storage Unit Experimental Signal Interpreter Long-range Terrain Scanner Advanced Terrain Scan Processor Advanced ECM Suite Centrium Medium Armor Plating Advanced Force Field Advanced System Shield Spacefold Activator > --- WEAPON (4) ------- Enhanced Nova Cannon Phasing Sabre Enhanced Force Lance > --- INVENTORY (15) --- Antigrav Array Nanoactuators Nanoactuators Advanced Transmission Jammer Improved Cloaking Device Experimental Thermal Shield Improved Shock Absorption System System Purifier Core Stripper Peak State ------------ > --- POWER ------------ Vortex Chain Reactor > --- PROPULSION ------- Cooled Gravmag System Improved Gyrokinetic Inverter Improved Linear Gravjet Cooled Antigrav System Combat Antigrav System Antigrav Array Antigrav Array > --- UTILITY ---------- Large Storage Unit Experimental Signal Interpreter Advanced Terrain Scan Processor Nanoactuators Advanced Transmission Jammer Advanced Reaction Control System Improved Cloaking Device Centrium Medium Armor Plating Experimental Thermal Shield Advanced System Shield > --- WEAPON ----------- Enhanced Nova Cannon Core Stripper Enhanced Force Lance > --- INVENTORY -------- Cooled Antigrav System Antigrav Array Advanced Sensor Array Advanced Terrain Scanner Nanoactuators Advanced ECM Suite Experimental Propulsion Shielding Improved Shock Absorption System Advanced Shield Generator System Purifier Integrity Redistributor Spacefold Activator Phasing Sabre Enhanced Force Lance [Rating: 211] Favorites ----------- Power Vortex Chain Reactor Engine Improved Deuterium Engine Power Core Micro Fission Core Reactor Vortex Chain Reactor Propulsion Armored Huge Wheel Treads Armored Treads Leg Carbon-fiber Leg Wheel Armored Huge Wheel Hover Unit Antigrav System Flight Unit Cooled Nuclear Pulse Thruster Utility Huge Storage Unit Device Improved Terrain Scanner Storage Huge Storage Unit Processor Signal Interpreter Hackware Advanced System Shield Protection Improved Medium Armor Plating Artifact Spacefold Activator Weapon Heavy Assault Rifle Energy Gun Small Laser Energy Cannon Enhanced Nova Cannon Ballistic Gun Heavy Assault Rifle Ballistic Cannon Advanced Assault Cannon Launcher Proton Missile Launcher Impact Weapon Power Maul Slashing Weapon Phasing Sabre Piercing Weapon Enhanced Force Lance Build | -11 -10 -9 -8 -7 -7 -7 -7 -6 -6 -6 -5 -5 -5 -5 -4 -4 -4 -4 -4 -3 -3 -3 -3 -2 -2 -1 -1 ------- Run | Scr Mat Mat Mat Fac Low Low Dat Pro Fac DSF Fac Upp Upp Zhi Pro Fac Upp Upp War Pro Res Qua Sec Res Tes Acc Com Slots Evolved 18 | . . 2 2 2 . . . . 2 . 2 . . . . 2 . . . . 2 . . 2 . 2 . Power 1 | . . . . . . . . . . . . . . . . 1 . . . . . . . . . . . Propulsion 7 | . . 1 1 1 . . . . 1 . . . . . . 1 . . . . 1 . . 1 . . . Utility 8 | . . 1 1 1 . . . . 1 . 2 . . . . . . . . . 1 . . . . 1 . Weapon 2 | . . . . . . . . . . . . . . . . . . . . . . . . 1 . 1 . Parts Attached 391 | 2 12 14 19 35 13 20 2 13 5 7 10 5 6 9 18 31 8 6 10 4 13 14 47 12 6 25 25 Power 14 | . 1 1 . 3 . 2 . . . 1 . . . 1 . 2 . . 1 . . 2 . . . . . Engine 5 | . 1 1 . 3 . . . . . . . . . . . . . . . . . . . . . . . Core 3 | . . . . . . 2 . . . 1 . . . . . . . . . . . . . . . . . Reactor 6 | . . . . . . . . . . . . . . 1 . 2 . . 1 . . 2 . . . . . Propulsion 60 | 1 3 6 8 5 1 2 . . 1 2 1 . . 2 . 8 . . 1 . 3 2 3 4 1 3 3 Treads 21 | . 1 4 8 3 1 1 . . . 2 . . . 1 . . . . . . . . . . . . . Leg 1 | . . . . . . 1 . . . . . . . . . . . . . . . . . . . . . Wheel 9 | 1 2 2 . 2 . . . . 1 . 1 . . . . . . . . . . . . . . . . Hover 28 | . . . . . . . . . . . . . . . . 8 . . 1 . 3 2 3 4 1 3 3 Flight 1 | . . . . . . . . . . . . . . 1 . . . . . . . . . . . . . Utility 249 | 1 3 3 10 21 8 10 2 13 3 2 5 5 6 4 14 18 6 5 5 4 8 9 36 4 5 18 21 Device 162 | 1 1 2 1 10 6 8 1 10 1 . 3 3 4 1 8 11 4 5 3 4 7 6 26 4 4 13 15 Storage 5 | . 2 . . 1 . . . . . . . . . . . 1 . . 1 . . . . . . . . Processor 4 | . . . . 1 . . . . . . 1 . . . . 1 . . . . . 1 . . . . . Hackware 2 | . . . . . . . . . 1 . . . . . . 1 . . . . . . . . . . . Protection 70 | . . 1 9 9 2 2 1 3 1 2 1 2 2 3 6 4 2 . 1 . 1 2 7 . . 5 4 Artifact 6 | . . . . . . . . . . . . . . . . . . . . . . . 3 . 1 . 2 Weapon 68 | . 5 4 1 6 4 6 . . 1 2 4 . . 2 4 3 2 1 3 . 2 1 8 4 . 4 1 Energy Gun 2 | . . . . . 1 1 . . . . . . . . . . . . . . . . . . . . . Energy Cannon 12 | . . . . 1 . . . . . . 1 . . . 1 1 1 . 1 . 1 1 2 1 . . 1 Ballistic Gun 25 | . 4 4 1 2 . 3 . . 1 2 2 . . 1 2 1 . . 1 . . . . 1 . . . Ballistic Cannon 4 | . . . . 2 2 . . . . . . . . . . . . . . . . . . . . . . Launcher 4 | . 1 . . 1 . 1 . . . . . . . . . . 1 . . . . . . . . . . Special Weapon . | . . . . . . . . . . . . . . . . . . . . . . . . . . . . Impact Weapon 12 | . . . . . 1 1 . . . . 1 . . 1 1 1 . . 1 . 1 . 3 . . 1 . Slashing Weapon 5 | . . . . . . . . . . . . . . . . . . 1 . . . . 2 . . 2 . Piercing Weapon 4 | . . . . . . . . . . . . . . . . . . . . . . . 1 2 . 1 . Special Melee Weapon . | . . . . . . . . . . . . . . . . . . . . . . . . . . . . Unidentified Prototypes 19 | . . . . . . . . . . . . . . 4 1 . . . 4 . 1 2 7 . . . . Parts Lost 23 | . 1 4 1 2 3 4 . . . 1 . . . . . . . . . . 1 . 1 . . . 5 Power 1 | . . . . . . 1 . . . . . . . . . . . . . . . . . . . . . Propulsion 10 | . 1 2 . 2 1 2 . . . 1 . . . . . . . . . . . . . . . . 1 Utility 10 | . . 2 1 . 1 1 . . . . . . . . . . . . . . 1 . 1 . . . 3 Weapon 2 | . . . . . 1 . . . . . . . . . . . . . . . . . . . . . 1 Highest Loss Streak 3 | . 1 2 1 1 3 3 . . . 1 . . . . . . . . . . 1 . 1 . . . 2 To Critical Strikes . | . . . . . . . . . . . . . . . . . . . . . . . . . . . . Average Slot Usage (%) 91 | . 100 96 100 97 92 90 84 84 85 84 85 88 88 87 88 92 94 94 91 89 89 87 83 85 85 87 86 Engine 3 | . 14 11 9 7 7 1 . . . . . . . . . . . . . . . . . . . . . Core 1 | . . . . . . 5 7 7 6 6 5 5 5 2 . . . . . . . . . . . . . Reactor 2 | . . . . . . . . . . . . . . 2 5 8 10 10 7 5 4 4 4 4 4 4 4 Treads 10 | . . 19 27 22 23 18 7 7 6 8 11 11 11 11 11 1 . . . . . . . . . . . Leg 1 | . 14 2 . . . 2 7 7 6 3 . . . . . . . . . . . . . . . . . Wheel 6 | . 13 10 9 12 7 7 7 7 13 13 10 11 11 11 11 1 . . . . . . . . . . . Hover 9 | . . . . . . . . . . . . . . . . 29 31 31 31 31 33 30 28 30 30 28 28 Device 14 | . 14 13 9 11 14 9 15 14 13 6 13 17 11 12 15 15 20 20 17 15 18 18 18 20 19 21 17 Storage 6 | . 14 11 9 7 7 7 7 7 6 6 5 5 5 5 5 5 5 5 5 5 4 4 4 4 4 4 4 Processor 6 | . . . . 7 7 7 7 7 6 6 9 11 11 11 11 10 10 10 10 10 9 9 9 8 8 8 8 Hackware 2 | . . . . . . . . . 5 6 5 5 5 5 5 8 5 5 5 5 4 4 4 4 4 4 4 Protection 6 | . . 5 18 10 7 12 7 7 6 12 8 5 10 8 6 1 . . 2 5 4 4 2 . . 1 4 Energy Cannon 1 | . . . . . . . . . . . 3 . . . . . 3 5 3 . 1 3 2 3 4 4 4 Ballistic Gun 8 | . 25 22 18 9 2 4 7 7 6 13 3 11 11 8 9 5 . . . 5 1 . . 1 . . . Ballistic Cannon 1 | . . . . 3 9 8 . . . . . . . . . . . . . . . . . . . . . Naked Turns . | . . . . . . . . . . . . . . . . . . . . . . . . . . . . Heaviest Build 129 | 12 90 98 110 114 117 121 114 114 106 117 122 124 122 129 129 116 69 70 81 71 81 86 91 93 93 106 117 Greatest Support 117 | 20 10 12 12 28 28 28 28 28 56 56 56 56 56 56 56 72 72 72 76 76 85 95 96 112 114 114 117 Greatest Overweight (x) 9 | 1 8 9 9 4 4 4 4 4 1 2 4 2 2 2 2 2 . . 1 . . . . . . . 1 Average Overweight (x) 1 | . 4 8 8 3 3 3 3 3 1 1 1 1 1 1 1 . . . . . . . . . . . . Largest Inventory Capacity 25 | 8 25 25 25 25 25 25 25 25 25 25 25 25 25 25 25 25 15 15 15 15 15 15 15 15 15 15 15 Average Capacity 21 | 8 19 25 25 25 25 25 25 25 25 25 25 25 25 25 25 16 15 15 15 15 15 15 15 15 15 15 15 Most Carried 25 | 7 25 25 25 25 25 25 25 25 23 25 25 25 25 25 25 25 15 15 15 15 15 15 15 15 15 15 15 Average Carried 21 | 6 16 24 24 24 23 24 25 25 22 24 24 25 24 24 24 16 15 15 14 15 14 14 14 14 14 14 14 Final Capacity 25 | 8 25 25 25 25 25 25 25 25 25 25 25 25 25 25 25 15 15 15 15 15 15 15 15 15 15 15 15 Final Carried 25 | 7 25 25 25 25 23 25 25 25 21 25 25 25 25 25 25 15 15 15 15 15 15 15 15 15 15 15 11 Class Distribution -------------------- 33% | Scavenger-Mutant 16% | Mutant 10% | Scavenger-Skirmisher 9% | Infiltrator-Ninja 7% | Skirmisher 5% | Scavenger-Scout 3% | Scout 3% | Scavenger-Assassin Dominant Class ---------------- Mutant | -10/Materials Scavenger-Mutant | -9/Materials Scavenger-Mutant | -8/Materials Scavenger-Mutant | -7/Factory Skirmisher | -7/Lower Caves Scavenger-Mutant | -7/Lower Caves Scavenger-Mutant | -7/Data Miner Scavenger-Mutant | -6/Proximity Caves Scavenger-Mutant | -6/Factory Scavenger-Mutant | -6/DSF Scavenger-Mutant | -5/Factory Scavenger-Skirmisher | -5/Upper Caves Scavenger-Skirmisher | -5/Upper Caves Mutant | -5/Zhirov Skirmisher | -4/Proximity Caves Hacker-Scout | -4/Factory Scavenger-Scout | -4/Upper Caves Scavenger-Scout | -4/Upper Caves Mutant | -4/Warlord Scout | -3/Proximity Caves Scout | -3/Research Scout | -3/Quarantine Infiltrator-Ninja | -3/Section 7 Infiltrator-Ninja | -2/Research Infiltrator-Ninja | -2/Testing Infiltrator-Ninja | -1/Access Infiltrator-Mutant | -1/Command Resources | -11 -10 -9 -8 -7 -7 -7 -7 -6 -6 -6 -5 -5 -5 -5 -4 -4 -4 -4 -4 -3 -3 -3 -3 -2 -2 -1 -1 ----------- Run | Scr Mat Mat Mat Fac Low Low Dat Pro Fac DSF Fac Upp Upp Zhi Pro Fac Upp Upp War Pro Res Qua Sec Res Tes Acc Com Matter Collected 5983 | 229 193 595 549 905 249 604 . 198 . 148 89 99 112 69 299 307 81 77 . 170 104 114 447 95 . 140 110 Remotely 351 | . 183 168 . . . . . . . . . . . . . . . . . . . . . . . . . Salvage Created 7195 | 120 204 602 620 939 223 406 . 119 . . . 66 . 117 213 524 89 234 . 40 104 157 513 309 . 570 1026 Parts 313 | 4 25 40 45 45 3 23 . 4 . . . . . . 13 12 5 1 . 3 7 8 14 9 . 40 12 Haulers Intercepted 3 | . . . 1 . . . . . . . . . . . . . . . . . . . . 1 . 1 . Recyclers Shooed 6 | . 1 1 . . . . . . . . . . . . . 2 . . . . . 2 . . . . . Parts Field Recycled . | . . . . . . . . . . . . . . . . . . . . . . . . . . . . Retrieved Matter . | . . . . . . . . . . . . . . . . . . . . . . . . . . . . Parts Self-Destructed 64 | . . . . . 5 16 . 16 . . . 3 3 . 12 . 4 . 5 . . . . . . . . Prevented 27 | . . . . . . 5 . 3 . . . . . . . . 3 . 16 . . . . . . . . Kills | -11 -10 -9 -8 -7 -7 -7 -7 -6 -6 -6 -5 -5 -5 -5 -4 -4 -4 -4 -4 -3 -3 -3 -3 -2 -2 -1 -1 ------- Run | Scr Mat Mat Mat Fac Low Low Dat Pro Fac DSF Fac Upp Upp Zhi Pro Fac Upp Upp War Pro Res Qua Sec Res Tes Acc Com Combat Hostiles Destroyed 98 | . 10 10 13 22 5 11 . 2 . . . . . . 6 3 3 . . . 1 . 6 . . 4 2 Melee 13 | . . . . . . . . . . . . . . . . 3 . . . . 1 . 3 . . 4 2 Guns 58 | . 8 10 13 16 2 3 . . . . . . . . 6 . . . . . . . . . . . . Cannons 12 | . . . . 3 3 6 . . . . . . . . . . . . . . . . . . . . . AOE 11 | . 2 . . 3 . 1 . 2 . . . . . . . . 3 . . . . . . . . . . Classes Destroyed 14 | 2 3 1 2 . 1 1 . . . . . . . . . 3 . . . . . . 1 . . . . Worker 6 | . . . . . . . . . . . . . . . . 1 . . . . 1 1 . 2 . . 1 Builder 1 | . . . . . . . . . . . . . . . . 1 . . . . . . . . . . . Tunneler 5 | 1 2 . . . . . . . . . . . . . . . . . . . 1 . . . . 1 . Hauler 3 | . . . 1 . . . . . . . . . . . . . . . . . . . . 1 . 1 . Recycler 9 | 1 . 1 1 . . . . . . . . . . . . 2 . . . . . 1 . 1 . 1 1 Operator 3 | . . . 1 . . . . . . . . . . . . . . . . . . . . 1 . . 1 Watcher 11 | . 1 1 . 2 . . . . . . . . . . . 3 . . . . . 1 1 . . 2 . Swarmer 31 | . 9 . 6 3 1 4 . . . . . . . . 5 . 3 . . . . . . . . . . Grunt 33 | . 1 3 3 16 3 4 . 2 . . . . . . . . . . . . . . 1 . . . . Sentry 22 | . . 7 4 3 1 1 . . . . . . . . 1 . . . . . 1 . 2 . . 1 1 Hunter 3 | . . . . . . 2 . . . . . . . . . 1 . . . . . . . . . . . Programmer 7 | . . . . . . . . . . . . . . . . 2 . . . . . . 2 . . 3 . Heavy 1 | . . . . . . . . . . . . . . . . . . . . . . . 1 . . . . Samaritan 2 | . . . . . 1 . . . . . . . . . . . . . . 1 . . . . . . . Best Kill Streak 5 | 1 3 3 4 5 5 4 . 2 . . . . . . 5 3 3 . . 1 3 1 2 2 . 3 2 Combat Bots Only 5 | . 3 3 4 5 5 4 . 2 . . . . . . 5 1 3 . . . 1 . 2 . . 2 1 Max Kills in Single Turn 2 | 1 1 1 1 2 1 1 . 1 . . . . . . 2 1 2 . . 1 1 1 1 1 . 1 2 Gunslinging 1 | . . . . . . . . . . . . . . . 1 . . . . . . . . . . . . Exploded 2 | . 1 . . 2 . 1 . 1 . . . . . . . . 2 . . . . . . . . . . Melee 1 | . . . . . . . . . . . . . . . . 1 . . . . 1 . 1 . . 1 1 Uniques/NPCs Destroyed 1 | . . . . . . . . . . . . . . . . . . . . . . . . . . . 1 MAIN.C Shell (-1/Command) Combat | -11 -10 -9 -8 -7 -7 -7 -7 -6 -6 -6 -5 -5 -5 -5 -4 -4 -4 -4 -4 -3 -3 -3 -3 -2 -2 -1 -1 -------- Run | Scr Mat Mat Mat Fac Low Low Dat Pro Fac DSF Fac Upp Upp Zhi Pro Fac Upp Upp War Pro Res Qua Sec Res Tes Acc Com Damage Taken 10690 | . 363 520 353 1776 287 767 . 157 . 199 76 . . . 188 244 52 29 14 . 84 58 1160 . 43 320 4000 Core 2437 | . 37 64 21 148 2 71 . . . . . . . . . 29 . 12 . . 42 . 525 . 43 117 1326 Absorbed by Shields 2882 | . . 192 141 705 168 184 . 40 . 71 26 . . . 71 74 20 11 5 . 31 21 210 . . 31 881 Redirected to Shielding 298 | . . . . . . . . . . . . . . . . 46 . . . . . 32 43 . . 18 159 Regen/Repaired (Parts) 2010 | . 10 . . . . . . . . . 217 . . . . . . . . . . . 754 . . . 1029 Core Remaining (%) 87 | 100 85 84 96 . . . . 68 . 100 . . . . 100 . . . . 96 . . 49 . 97 . . Volleys Fired 395 | 3 37 39 42 84 13 32 . 12 . 6 3 6 2 . 21 4 4 15 1 . 4 9 16 5 . 11 26 Largest 2 | 2 2 2 2 2 2 2 . 1 . 2 1 2 2 . 2 1 1 1 1 . 1 1 1 1 . 1 1 Hottest 120 | 60 60 46 46 71 103 96 . 39 . 66 65 66 66 . 66 120 46 120 120 . 120 120 120 120 . 120 120 Shots Fired 651 | 6 72 78 84 159 26 58 . 12 . 12 3 12 4 . 30 4 4 15 1 . 4 9 16 5 . 11 26 Gun 432 | 6 70 78 84 112 9 21 . 6 . 12 . 12 4 . 18 . . . . . . . . . . . . Cannon 197 | . . . . 43 17 31 . . . . 3 . . . 12 4 . 15 1 . 4 9 16 5 . 11 26 Launcher 22 | . 2 . . 4 . 6 . 6 . . . . . . . . 4 . . . . . . . . . . Special . | . . . . . . . . . . . . . . . . . . . . . . . . . . . . Kinetic 503 | 3 67 78 84 150 22 47 . 6 . 12 . 12 4 . 18 . . . . . . . . . . . . Thermal 121 | 3 3 . . 5 4 . . . . . 3 . . . 12 4 . 15 1 . 4 9 16 5 . 11 26 Explosive 6 | . 2 . . 4 . . . . . . . . . . . . . . . . . . . . . . . Electromagnetic 21 | . . . . . . 11 . 6 . . . . . . . . 4 . . . . . . . . . . Robot Hit Streak 18 | 4 6 18 17 11 6 11 . 12 . 4 5 7 6 . 6 . 7 . . . . . . . . . . Robot Miss Streak 4 | . 3 3 3 3 2 4 . 1 . 1 . 1 1 . 2 . 1 . . . . . 2 . . . . Penetration Max 1 | . . . . . . . . . . . . 1 . . 1 . . . . . . . . . . . . Secondary Targets 4 | . 1 . . 2 . . . . . . . . . . 1 . . . . . . . . . . . . Max Gunslinging Chain 1 | . 1 . . 1 . . . . . . . . . . 1 . . . . . . . . . . . . Shots Hit Robots 510 | 4 39 60 54 109 17 38 . 9 . 9 3 8 3 3 13 17 1 3 . 2 7 7 23 7 . 23 51 Core Hits 242 | 3 15 24 24 64 11 17 . 14 . 4 . 2 1 . 8 2 4 2 . 1 3 2 8 2 . 10 21 Critical Kills 1 | . . . . . . . . . . . . . . . . 1 . . . . . . . . . . . Critical Parts Destroyed 5 | . . . . . 1 . . . . . 1 . . . . 3 . . . . . . . . . . . Critical Strikes 29 | . . . . 2 2 1 . . . 1 1 . . . . 4 . . . . 1 . 5 3 . 2 7 Destroy 2 | . . . . 1 . . . . . 1 . . . . . . . . . . . . . . . . . Blast 3 | . . . . 1 1 1 . . . . . . . . . . . . . . . . . . . . . Smash 6 | . . . . . 1 . . . . . 1 . . . . 4 . . . . . . . . . . . Sever 4 | . . . . . . . . . . . . . . . . . . . . . 1 . 3 . . . . Impale 14 | . . . . . . . . . . . . . . . . . . . . . . . 2 3 . 2 7 Melee Attacks 349 | . . . . . 1 2 . . . . 5 . . 3 1 37 3 6 12 2 12 36 51 40 2 71 65 Kinetic 10 | . . . . . . . . . . . . . . . . . . . . . . . 6 . . 4 . Impact 57 | . . . . . 1 2 . . . . 5 . . 3 1 37 3 2 . . . 3 . . . . . Slashing 139 | . . . . . . . . . . . . . . . . . . 4 12 2 12 33 32 . . 30 14 Piercing 143 | . . . . . . . . . . . . . . . . . . . . . . . 13 40 2 37 51 Sneak Attacks 22 | . . . . . 1 . . . . . . . . . . 4 . . . 2 2 4 . 6 . 3 . Combat Hostiles . | . . . . . . . . . . . . . . . . . . . . . . . . . . . . Follow-up Attacks 27 | . . . . . . . . . . . . . . . . . . . . . . . 3 1 . 7 16 Damage Inflicted 15911 | 50 558 840 840 2276 452 871 . 363 . 164 120 210 86 304 339 1106 146 256 . 169 395 477 960 694 . 1227 3008 Guns 4807 | 50 458 840 840 1292 132 323 . 73 . 164 . 210 86 . 339 . . . . . . . . . . . . Cannons 1262 | . . . . 668 232 329 . . . . 33 . . . . . . . . . . . . . . . . Explosions 1379 | . 100 . . 316 . 219 . 290 . . . . . . . . 146 . . . . . . . . . 308 Melee 8463 | . . . . . 88 . . . . . 87 . . 304 . 1106 . 256 . 169 395 477 960 694 . 1227 2700 Ramming . | . . . . . . . . . . . . . . . . . . . . . . . . . . . . Kinetic 6077 | 14 425 840 840 1960 278 577 . 73 . 164 . 210 86 . 339 . . . . . . . 123 . . 148 . Thermal 285 | 36 33 . . . 86 97 . . . . 33 . . . . . . . . . . . . . . . . Explosive 724 | . 100 . . 316 . . . . . . . . . . . . . . . . . . . . . . 308 Electromagnetic 633 | . . . . . . 197 . 290 . . . . . . . . 146 . . . . . . . . . . Impact 1585 | . . . . . 88 . . . . . 87 . . 304 . 1106 . . . . . . . . . . . Slashing 2593 | . . . . . . . . . . . . . . . . . . 256 . 169 395 477 501 . . 293 502 Piercing 4014 | . . . . . . . . . . . . . . . . . . . . . . . 336 694 . 786 2198 Highest Corruption 21 | . . . . . . . . . . . 1 1 1 1 1 4 4 . . . . . 2 . . . 21 Average Corruption 1 | . . . . . . . . . . . 1 1 1 1 1 3 3 . . . . . 1 . . . 12 Corruption Purged 4 | . . . . . . . . . . . . . . . . . 4 . . . . . . . . . . Corruption Blocked 42 | . . . . . . . . . . . . . . . . . . . . . . . . 6 36 . . Effects 32 | . . . . . . . . . . . 1 1 4 1 11 4 2 . . . . . 1 . . . 7 Message Errors 9 | . . . . . . . . . . . . . 1 . 2 2 2 . . . . . 1 . . . 1 Matter Fused 6 | . . . . . . . . . . . 1 . 1 1 2 1 . . . . . . . . . . . Heat Flow Errors 4 | . . . . . . . . . . . . . . . 2 . . . . . . . . . . . 2 Energy Discharges 2 | . . . . . . . . . . . . 1 . . 1 . . . . . . . . . . . . Data Loss (minor) 6 | . . . . . . . . . . . . . 1 . 2 1 . . . . . . . . . . 2 Data Loss (major) 4 | . . . . . . . . . . . . . 1 . 2 . . . . . . . . . . . 1 Misdirections 1 | . . . . . . . . . . . . . . . . . . . . . . . . . . . 1 Overload Shots . | . . . . . . . . . . . . . . . . . . . . . . . . . . . . Overflow Damage 1827 | . . . . . 88 6 . . . . 50 . . 141 . 589 . 71 . 38 34 120 54 571 . 65 . Projectiles 6 | . . . . . . 6 . . . . . . . . . . . . . . . . . . . . . Explosions . | . . . . . . . . . . . . . . . . . . . . . . . . . . . . Melee 1821 | . . . . . 88 . . . . . 50 . . 141 . 589 . 71 . 38 34 120 54 571 . 65 . Knockbacks 22 | . . . . 13 . 5 . . . . . . . . . 4 . . . . . . . . . . . Impact 4 | . . . . . . . . . . . . . . . . 4 . . . . . . . . . . . Kinetic 18 | . . . . 13 . 5 . . . . . . . . . . . . . . . . . . . . . Secondary . | . . . . . . . . . . . . . . . . . . . . . . . . . . . . Self-Inflicted Damage 65 | . . . . . . 44 . . . . . . . . . . 21 . . . . . . . . . . Shots 2 | . . . . . . 1 . . . . . . . . . . 1 . . . . . . . . . . Rammed . | . . . . . . . . . . . . . . . . . . . . . . . . . . . . Targets Rammed . | . . . . . . . . . . . . . . . . . . . . . . . . . . . . Kicked . | . . . . . . . . . . . . . . . . . . . . . . . . . . . . Crushed . | . . . . . . . . . . . . . . . . . . . . . . . . . . . . Highest Temperature 369 | . 20 16 20 134 243 220 . 8 . . 20 . 12 . 219 180 33 369 67 . 87 3 204 . . 26 134 Average Temperature 43 | . 20 8 12 40 118 77 . 8 . . 10 . 7 . 59 43 6 42 26 . 14 3 59 . . 9 36 Received Heat Transfer 1782 | . 6 199 110 827 106 210 . 45 . . . . . . 12 . . 15 . . 12 6 103 . . 18 113 Effects 1 | . . . . . . . . . . . . . . . . . . 1 . . . . . . . . . Energy Bleed 1 | . . . . . . . . . . . . . . . . . . 1 . . . . . . . . . Siege Activations . | . . . . . . . . . . . . . . . . . . . . . . . . . . . . Robots Corrupted 1 | . . . . . . 1 . . . . . . . . . . . . . . . . . . . . . Combat Hostiles 1 | . . . . . . 1 . . . . . . . . . . . . . . . . . . . . . Parts Fried 17 | . . . . . 1 1 . . . . . . . . . 15 . . . . . . . . . . . Impact Corruptions 29 | . . . . . 6 . . . . . 1 . . 2 . 20 . . . . . . . . . . . Robots Melted . | . . . . . . . . . . . . . . . . . . . . . . . . . . . . Combat Hostiles . | . . . . . . . . . . . . . . . . . . . . . . . . . . . . Parts Melted 1 | . . . . . . . . . . . . . . . . 1 . . . . . . . . . . . Heat Transferred 487 | 75 75 . . . 200 100 . . . . 37 . . . . . . . . . . . . . . . . Parts Sabotaged . | . . . . . . . . . . . . . . . . . . . . . . . . . . . . Parts Stolen . | . . . . . . . . . . . . . . . . . . . . . . . . . . . . Parts Stripped . | . . . . . . . . . . . . . . . . . . . . . . . . . . . . Power Chain Reactions 1 | . . . . . . 1 . . . . . . . . . . . . . . . . . . . . . Missiles Intercepted . | . . . . . . . . . . . . . . . . . . . . . . . . . . . . Alert | -11 -10 -9 -8 -7 -7 -7 -7 -6 -6 -6 -5 -5 -5 -5 -4 -4 -4 -4 -4 -3 -3 -3 -3 -2 -2 -1 -1 ------- Run | Scr Mat Mat Mat Fac Low Low Dat Pro Fac DSF Fac Upp Upp Zhi Pro Fac Upp Upp War Pro Res Qua Sec Res Tes Acc Com Peak Influence 497 | 10 314 213 236 477 . . . . 130 169 174 . . . . 163 . . . . 107 311 497 414 140 322 466 Initial 279 | . 6 40 5 65 . . . . 125 91 88 . . . . 11 . . . . 3 60 62 279 120 84 . Average 173 | 6 148 93 77 295 . . . . 127 123 114 . . . . 63 . . . . 40 164 322 328 136 171 281 Maximum Alert Level 3 | . 1 1 1 2 . . . . . . . . . . . . . . . . . 1 2 2 . 1 3 Low Security (%) 64 | 100 77 96 87 21 . . . . 100 100 100 . . . . 100 . . . . 100 73 9 . 100 74 20 Level 1 29 | . 22 3 12 64 . . . . . . . . . . . . . . . . . 26 69 95 . 25 23 Level 2 6 | . . . . 13 . . . . . . . . . . . . . . . . . . 21 4 . . 49 Level 3 . | . . . . . . . . . . . . . . . . . . . . . . . . . . . 6 Level 4 . | . . . . . . . . . . . . . . . . . . . . . . . . . . . . Level 5 . | . . . . . . . . . . . . . . . . . . . . . . . . . . . . High Security . | . . . . . . . . . . . . . . . . . . . . . . . . . . . . Max Security . | . . . . . . . . . . . . . . . . . . . . . . . . . . . . Squads Dispatched 18 | . 1 1 1 5 . . . . . 1 1 . . . . 1 . . . . . . 2 1 2 1 1 Investigation 2 | . . 1 1 . . . . . . . . . . . . . . . . . . . . . . . . Extermination 5 | . . . . . . . . . . . 1 . . . . 1 . . . . . . 1 . . 1 1 Reinforcement 8 | . 1 . . 2 . . . . . 1 . . . . . . . . . . . . 1 1 2 . . Assault . | . . . . . . . . . . . . . . . . . . . . . . . . . . . . Garrison 3 | . . . . 3 . . . . . . . . . . . . . . . . . . . . . . . Intercept . | . . . . . . . . . . . . . . . . . . . . . . . . . . . . Searches Triggered . | . . . . . . . . . . . . . . . . . . . . . . . . . . . . Construction Impeded 1 | . . . . 1 . . . . . . . . . . . . . . . . . . . . . . . Haulers Reinforced . | . . . . . . . . . . . . . . . . . . . . . . . . . . . . Active Scanning Responses . | . . . . . . . . . . . . . . . . . . . . . . . . . . . . Cargo Convoy Interrupts . | . . . . . . . . . . . . . . . . . . . . . . . . . . . . Stealth | -11 -10 -9 -8 -7 -7 -7 -7 -6 -6 -6 -5 -5 -5 -5 -4 -4 -4 -4 -4 -3 -3 -3 -3 -2 -2 -1 -1 --------- Run | Scr Mat Mat Mat Fac Low Low Dat Pro Fac DSF Fac Upp Upp Zhi Pro Fac Upp Upp War Pro Res Qua Sec Res Tes Acc Com Distress Signals 17 | . 2 1 2 . . . . . . . . . . . . . . . 1 . . . . 8 2 . 1 Communications Jammed 53 | . . . . . . . . . . . . . . . . . . . . . . . 43 . 1 2 7 Distress Signals 46 | . . . . . . . . . . . . . . . . . . . . . . . 40 . 1 2 3 Times Spotted 233 | . 23 13 17 35 8 13 . 8 . 3 1 1 1 . 6 11 5 4 5 . 1 5 19 . 3 9 42 Peak Tracking Total 14 | . 3 3 4 5 5 4 . 4 . 1 1 1 1 . 5 3 5 5 8 . 2 2 6 . 4 2 14 Tactical Retreats 24 | . 2 . 1 5 1 1 . . . . . . . . . . 2 . 1 . . . 3 . . . 8 Traps | -11 -10 -9 -8 -7 -7 -7 -7 -6 -6 -6 -5 -5 -5 -5 -4 -4 -4 -4 -4 -3 -3 -3 -3 -2 -2 -1 -1 ------- Run | Scr Mat Mat Mat Fac Low Low Dat Pro Fac DSF Fac Upp Upp Zhi Pro Fac Upp Upp War Pro Res Qua Sec Res Tes Acc Com Traps Triggered 6 | . . 1 1 . . . . . . 2 . . . . . 1 . . . . . . . . 1 . . Indirectly . | . . . . . . . . . . . . . . . . . . . . . . . . . . . . Trap Hack Attempts . | . . . . . . . . . . . . . . . . . . . . . . . . . . . . Triggered . | . . . . . . . . . . . . . . . . . . . . . . . . . . . . Disarmed . | . . . . . . . . . . . . . . . . . . . . . . . . . . . . Reprogrammed . | . . . . . . . . . . . . . . . . . . . . . . . . . . . . Reused . | . . . . . . . . . . . . . . . . . . . . . . . . . . . . Traps Extracted . | . . . . . . . . . . . . . . . . . . . . . . . . . . . . Installed . | . . . . . . . . . . . . . . . . . . . . . . . . . . . . Triggered 9 | . . . . . 2 . . . . . . . . . . . . 2 5 . . . . . . . . Machines | -11 -10 -9 -8 -7 -7 -7 -7 -6 -6 -6 -5 -5 -5 -5 -4 -4 -4 -4 -4 -3 -3 -3 -3 -2 -2 -1 -1 ---------- Run | Scr Mat Mat Mat Fac Low Low Dat Pro Fac DSF Fac Upp Upp Zhi Pro Fac Upp Upp War Pro Res Qua Sec Res Tes Acc Com Machines Disabled 20 | . . . . 3 . . . . . . . . . . . . . . . . . 4 8 . . . 5 Max in Single Turn 1 | . . . . 1 . . . . . . . . . . . . . . . . . 1 1 . . . 1 Garrison Access 5 | . . . . 3 . . . . . . . . . . . 1 . . . . . . . 1 . . . Phase Generator 1 | . . . . . . . . . . . . . . . . . . . . . . . . . . . 1 Machines Sabotaged . | . . . . . . . . . . . . . . . . . . . . . . . . . . . . Garrisons Compromised . | . . . . . . . . . . . . . . . . . . . . . . . . . . . . Overloaded Fab Kills . | . . . . . . . . . . . . . . . . . . . . . . . . . . . . Hacking | -11 -10 -9 -8 -7 -7 -7 -7 -6 -6 -6 -5 -5 -5 -5 -4 -4 -4 -4 -4 -3 -3 -3 -3 -2 -2 -1 -1 --------- Run | Scr Mat Mat Mat Fac Low Low Dat Pro Fac DSF Fac Upp Upp Zhi Pro Fac Upp Upp War Pro Res Qua Sec Res Tes Acc Com Machines Accessed 81 | . 6 2 7 8 . . 4 . 2 . 5 1 . 5 . 6 . . 5 . 4 7 7 . 2 7 3 Terminals 50 | . 5 1 6 5 . . . . 2 . 3 1 . . . 3 . . . . 4 5 5 . 1 6 3 Fabricators 1 | . . . . . . . . . . . . . . . . 1 . . . . . . . . . . . Repair Stations 2 | . 1 . . . . . . . . . 1 . . . . . . . . . . . . . . . . Recycling Units 3 | . . 1 1 . . . . . . . . . . . . . . . . . . . . . . 1 . Scanalyzers 4 | . . . . . . . . . . . . . . . . 1 . . . . . 1 1 . 1 . . Garrison Access 7 | . . . . 3 . . . . . . 1 . . . . 1 . . . . . 1 1 . . . . Total Hacks 243 | . 21 4 26 14 . . 29 . 3 . 10 1 . 18 . 15 . . 14 . 20 14 20 . 4 23 7 Successful 148 | . 11 2 13 9 . . 29 . 2 . 5 1 . 18 . 9 . . 14 . 11 6 9 . 2 6 1 Failed 94 | . 10 2 13 5 . . . . 1 . 5 . . . . 6 . . . . 9 8 11 . 2 16 6 Catastrophic 18 | . 2 . . . . . . . . . 1 . . . . 2 . . . . 3 4 2 . 1 2 1 Database Lockouts 1 | . . . . . . . . . . . . . . . . . . . . . . . . . . 1 . Manual 93 | . 13 4 11 4 . . . . 2 . 1 . . . . 5 . . 1 . 12 6 7 . 2 18 7 Terminals 155 | . 19 3 24 11 . . . . 3 . 4 1 . . . 11 . . . . 20 11 16 . 3 22 7 Fabricators 2 | . . . . . . . . . . . . . . . . 2 . . . . . . . . . . . Repair Stations 4 | . 2 . . . . . . . . . 2 . . . . . . . . . . . . . . . . Recycling Units 4 | . . 1 2 . . . . . . . . . . . . . . . . . . . . . . 1 . Scanalyzers 6 | . . . . . . . . . . . . . . . . 1 . . . . . 1 3 . 1 . . Garrison Access 11 | . . . . 3 . . . . . . 4 . . . . 1 . . . . . 2 1 . . . . Terminal Hacks 113 | . 7 . 10 5 . . 29 . 1 . 2 1 . 18 . 6 . . 14 . 7 3 5 . . 5 . Record 26 | . . . . . . . 11 . . . . 1 . 6 . . . . 8 . . . . . . . . Part Schematic 15 | . 1 . . . . . 9 . . . . . . 4 . . . . . . 1 . . . . . . Robot Schematic 6 | . . . . . . . 6 . . . . . . . . . . . . . . . . . . . . Robot Analysis 6 | . 1 . . . . . . . . . . . . 4 . 1 . . . . . . . . . . . Prototype ID Bank 28 | . 2 . 5 3 . . 3 . . . . . . 4 . 2 . . 4 . 1 1 1 . . 2 . Open Door 4 | . . . . . . . . . . . . . . . . . . . 2 . . . 2 . . . . Open DSF 3 | . . . . . . . . . 1 . 2 . . . . . . . . . . . . . . . . Branch Access Points 5 | . . . 2 1 . . . . . . . . . . . 1 . . . . . . . . . 1 . Alert Level 2 | . 1 . . . . . . . . . . . . . . . . . . . . 1 . . . . . Unreport Threat 3 | . . . . . . . . . . . . . . . . 1 . . . . . . . . . 2 . Locate Traps 9 | . 2 . 2 . . . . . . . . . . . . 1 . . . . 2 1 1 . . . . Hauler Manifests 1 | . . . . . . . . . . . . . . . . . . . . . 1 . . . . . . Zone Layout 5 | . . . 1 1 . . . . . . . . . . . . . . . . 2 . 1 . . . . Fabricator Hacks 1 | . . . . . . . . . . . . . . . . 1 . . . . . . . . . . . Build 1 | . . . . . . . . . . . . . . . . 1 . . . . . . . . . . . Repair Station Hacks 4 | . 2 . . . . . . . . . 2 . . . . . . . . . . . . . . . . Scan Component 2 | . 1 . . . . . . . . . 1 . . . . . . . . . . . . . . . . Repair 2 | . 1 . . . . . . . . . 1 . . . . . . . . . . . . . . . . Recycling Unit Hacks . | . . . . . . . . . . . . . . . . . . . . . . . . . . . . Scanalyzer 2 | . . . . . . . . . . . . . . . . . . . . . . . 1 . 1 . . Insert Component 2 | . . . . . . . . . . . . . . . . . . . . . . . 1 . 1 . . Garrison Access Hacks 4 | . . . . 3 . . . . . . . . . . . 1 . . . . . . . . . . . Seal Access 4 | . . . . 3 . . . . . . . . . . . 1 . . . . . . . . . . . Unauthorized Hacks 24 | . 2 2 3 1 . . . . 1 . 1 . . . . 1 . . . . 4 3 3 . 1 1 1 Terminals 23 | . 2 1 3 1 . . . . 1 . 1 . . . . 1 . . . . 4 3 3 . 1 1 1 Track 7 | . 1 . 2 . . . . . . . . . . . . . . . . . 2 1 1 . . . . Assimilate 2 | . . . . . . . . . . . . . . . . . . . . . . . . . . 1 1 Botnet 14 | . 1 1 1 1 . . . . 1 . 1 . . . . 1 . . . . 2 2 2 . 1 . . Fabricators . | . . . . . . . . . . . . . . . . . . . . . . . . . . . . Repair Stations . | . . . . . . . . . . . . . . . . . . . . . . . . . . . . Recycling Units 1 | . . 1 . . . . . . . . . . . . . . . . . . . . . . . . . Reject 1 | . . 1 . . . . . . . . . . . . . . . . . . . . . . . . . Scanalyzers . | . . . . . . . . . . . . . . . . . . . . . . . . . . . . Garrison Access . | . . . . . . . . . . . . . . . . . . . . . . . . . . . . Data Cores Recovered 1 | . . . 1 . . . . . . . . . . . . . . . . . . . . . . . . Used . | . . . . . . . . . . . . . . . . . . . . . . . . . . . . Hacking Detections 54 | . 6 1 7 5 . . . . 1 . 3 . . . . 5 . . . . 4 7 4 . 1 7 3 Full Trace Events 2 | . 1 . 1 . . . . . . . . . . . . . . . . . . . . . . . . Feedback Events . | . . . . . . . . . . . . . . . . . . . . . . . . . . . . Feedback Blocked . | . . . . . . . . . . . . . . . . . . . . . . . . . . . . Robot Schematics Acquired 7 | . . . . . . . 6 . . . . . . . . . . . . . . . . . 1 . . Robots Built . | . . . . . . . . . . . . . . . . . . . . . . . . . . . . Authchips . | . . . . . . . . . . . . . . . . . . . . . . . . . . . . Time . | . . . . . . . . . . . . . . . . . . . . . . . . . . . . Total Robot Build Rating . | . . . . . . . . . . . . . . . . . . . . . . . . . . . . Part Schematics Acquired 16 | . 1 . . . . . 9 . . . . . . 4 . . . . . . 1 . . . 1 . . Parts Built 1 | . . . . . . . . . . . . . . . . 1 . . . . . . . . . . . Authchips . | . . . . . . . . . . . . . . . . . . . . . . . . . . . . Time 69 | . . . . . . . . . . . . . . . . 69 . . . . . . . . . . . Total Part Build Rating 9 | . . . . . . . . . . . . . . . . 9 . . . . . . . . . . . Parts Repaired 2 | . 1 . . . . . . . . . 1 . . . . . . . . . . . . . . . . Time 70 | . 26 . . . . . . . . . 44 . . . . . . . . . . . . . . . . Parts Recycled . | . . . . . . . . . . . . . . . . . . . . . . . . . . . . Recycled Matter . | . . . . . . . . . . . . . . . . . . . . . . . . . . . . Retrieved Matter . | . . . . . . . . . . . . . . . . . . . . . . . . . . . . Retrieved Components . | . . . . . . . . . . . . . . . . . . . . . . . . . . . . Parts Scanalyzed . | . . . . . . . . . . . . . . . . . . . . . . . . . . . . Part Schematics Acquired . | . . . . . . . . . . . . . . . . . . . . . . . . . . . . Parts Damaged . | . . . . . . . . . . . . . . . . . . . . . . . . . . . . Bothacking | -11 -10 -9 -8 -7 -7 -7 -7 -6 -6 -6 -5 -5 -5 -5 -4 -4 -4 -4 -4 -3 -3 -3 -3 -2 -2 -1 -1 ------------ Run | Scr Mat Mat Mat Fac Low Low Dat Pro Fac DSF Fac Upp Upp Zhi Pro Fac Upp Upp War Pro Res Qua Sec Res Tes Acc Com Used RIF Installer . | . . . . . . . . . . . . . . . . . . . . . . . . . . . . Robots Hacked . | . . . . . . . . . . . . . . . . . . . . . . . . . . . . Non-combat . | . . . . . . . . . . . . . . . . . . . . . . . . . . . . Combat . | . . . . . . . . . . . . . . . . . . . . . . . . . . . . Robot Hacks Applied . | . . . . . . . . . . . . . . . . . . . . . . . . . . . . Relay Couplers Released 4 | . . . . 2 . . . . . . . . . . . . . . . . . . . 2 . . . Machine Destruction 4 | . . . . 2 . . . . . . . . . . . . . . . . . . . 2 . . . Fabnet Peak Effective % . | . . . . . . . . . . . . . . . . . . . . . . . . . . . . Robots Rewired . | . . . . . . . . . . . . . . . . . . . . . . . . . . . . Allies Hacked 1 | . . . . . . . . . . . . . . . . . . . . . . . . . . . 1 Hacks Repelled . | . . . . . . . . . . . . . . . . . . . . . . . . . . . . Allies | -11 -10 -9 -8 -7 -7 -7 -7 -6 -6 -6 -5 -5 -5 -5 -4 -4 -4 -4 -4 -3 -3 -3 -3 -2 -2 -1 -1 -------- Run | Scr Mat Mat Mat Fac Low Low Dat Pro Fac DSF Fac Upp Upp Zhi Pro Fac Upp Upp War Pro Res Qua Sec Res Tes Acc Com Total Allies 6 | . . . . . . . . 1 . . . . . . . 3 . . . . . . . . . 1 1 Largest Group 3 | . . . . . . . . 1 1 1 1 1 1 1 1 3 . . . . . . . . . 1 1 Highest-Rated Group 138 | . . . . . . . . 96 96 96 96 96 96 96 96 138 . . . . . . . . . 45 45 Highest-Rated Ally 96 | . . . . . . . . 96 96 96 96 96 96 96 96 46 . . . . . . . . . 45 45 Total Orders 4 | . . . . . . . . . . . . . . . . . . . . 1 . . . . . 2 1 STAY 2 | . . . . . . . . . . . . . . . . . . . . . . . . . . 1 1 FOLLOW 1 | . . . . . . . . . . . . . . . . . . . . . . . . . . 1 . EXPLORE 1 | . . . . . . . . . . . . . . . . . . . . 1 . . . . . . . Ally Attacks 55 | . . . . . . . . 18 . 10 5 7 3 . . 12 . . . . . . . . . . . Total Damage 1854 | . . . . . . . . 841 . 189 236 195 171 . . 222 . . . . . . . . . . . Kills 14 | . . . . . . . . 6 . 3 2 1 1 . . 1 . . . . . . . . . . . Allies Corrupted . | . . . . . . . . . . . . . . . . . . . . . . . . . . . . Allies Melted 1 | . . . . . . . . . . . . . . . . . . . . . . . . 1 . . . Intel | -11 -10 -9 -8 -7 -7 -7 -7 -6 -6 -6 -5 -5 -5 -5 -4 -4 -4 -4 -4 -3 -3 -3 -3 -2 -2 -1 -1 ------- Run | Scr Mat Mat Mat Fac Low Low Dat Pro Fac DSF Fac Upp Upp Zhi Pro Fac Upp Upp War Pro Res Qua Sec Res Tes Acc Com Robot Analysis Total 6 | . 1 . . . . . . . . . . . . 4 . 1 . . . . . . . . . . . Derelict Logs Recovered 9 | . . . . . 1 . . 2 . . . 1 1 . 3 . . 1 . . . . . . . . . Drone Launches 1 | . . . . . . . . . . . . . . . . . . . . 1 . . . . . . . Drone Recoveries 1 | . . . . . . . . . . . . . . . . . . . . 1 . . . . . . . Exploration | -11 -10 -9 -8 -7 -7 -7 -7 -6 -6 -6 -5 -5 -5 -5 -4 -4 -4 -4 -4 -3 -3 -3 -3 -2 -2 -1 -1 ------------- Run | Scr Mat Mat Mat Fac Low Low Dat Pro Fac DSF Fac Upp Upp Zhi Pro Fac Upp Upp War Pro Res Qua Sec Res Tes Acc Com Turns Passed 15868 | 62 973 981 1383 1287 825 1423 119 778 66 177 423 527 435 254 1303 491 271 511 353 172 158 412 736 422 120 736 470 Spaces Moved 13598 | 44 540 351 563 614 503 669 81 492 52 92 291 418 302 181 780 752 470 675 705 371 321 870 905 670 173 1012 701 Core . | . . . . . . . . . . . . . . . . . . . . . . . . . . . . Treads . | . . . . . . . . . . . . . . . . . . . . . . . . . . . . Legs 20 | 20 . . . . . . . . . . . . . . . . . . . . . . . . . . . Wheels 5996 | 24 540 351 563 614 503 669 81 492 52 92 291 418 302 181 780 43 . . . . . . . . . . . Hover 7496 | . . . . . . . . . . . . . . . . 709 470 675 705 371 321 870 871 670 170 1006 658 Flight . | . . . . . . . . . . . . . . . . . . . . . . . . . . . . Fastest Speed 28 | 95 95 200 210 140 145 145 145 145 115 115 115 115 115 115 115 33 33 33 33 35 28 28 31 31 31 33 34 Average Speed 84 | 106 144 212 211 145 145 155 145 145 115 127 126 115 121 122 129 40 33 33 41 35 28 29 32 31 32 33 34 Slowest Speed 225 | 120 200 215 225 160 160 160 160 160 115 130 160 130 130 130 130 130 33 33 95 35 28 31 38 35 33 34 92 Overloaded Moves . | . . . . . . . . . . . . . . . . . . . . . . . . . . . . Propulsion Burnouts . | . . . . . . . . . . . . . . . . . . . . . . . . . . . . Robots Hopped . | . . . . . . . . . . . . . . . . . . . . . . . . . . . . Cave-ins Triggered . | . . . . . . . . . . . . . . . . . . . . . . . . . . . . Spacefolds 30 | . . . . . . . . . . . . . . . . . . . . . . . 12 . 1 2 15 Exploration Rate (%) 48 | 4 83 33 55 18 65 60 70 59 2 76 8 61 41 62 83 25 53 70 89 65 11 82 63 25 34 26 46 Regions Visited 27 Branch Regions 16 Pre-discovered Areas 5 | . . . . . . . 1 1 . . . . . 3 . . . . . . . . . . . . . Known Exits Taken 22 | . . . . 1 1 1 1 1 1 . 1 1 1 1 1 1 1 1 1 1 1 1 1 1 1 1 . Unknown Exits Taken 4 | 1 1 1 1 . . . . . . . . . . . . . . . . . . . . . . . . Scrap Searched 16 | . . . . . . 3 . 2 . . . . 2 . 2 . . 3 . 4 . . . . . . . Spaces Dug 220 | . . . . 2 . 2 . . . . 5 1 . . 5 20 3 18 7 . 8 29 27 33 2 35 23 Terrain Destroyed 333 | . 11 . . 8 3 16 . . . . 5 1 . . 10 20 3 18 7 . 8 29 28 33 2 35 96 Melee 132 | . . . . . . 2 . . . . 3 . . . 1 16 3 3 6 . 4 20 16 28 2 24 4 Projectile 107 | . . . . 6 3 5 . . . . 2 1 . . 9 4 . 15 1 . 4 9 12 5 . 11 20 AOE 94 | . 11 . . 2 . 9 . . . . . . . . . . . . . . . . . . . . 72 Terrain Rammed . | . . . . . . . . . . . . . . . . . . . . . . . . . . . . Walls Destroyed . | . . . . . . . . . . . . . . . . . . . . . . . . . . . . Machines Disabled . | . . . . . . . . . . . . . . . . . . . . . . . . . . . . Actions | -11 -10 -9 -8 -7 -7 -7 -7 -6 -6 -6 -5 -5 -5 -5 -4 -4 -4 -4 -4 -3 -3 -3 -3 -2 -2 -1 -1 --------- Run | Scr Mat Mat Mat Fac Low Low Dat Pro Fac DSF Fac Upp Upp Zhi Pro Fac Upp Upp War Pro Res Qua Sec Res Tes Acc Com Total 16742 | 52 664 521 694 843 561 980 82 539 57 144 330 449 363 206 1031 865 571 935 750 408 364 966 1216 801 230 1310 810 Wait 1775 | 2 41 87 28 90 31 249 . 20 . 1 14 21 52 3 207 14 87 233 9 30 2 19 184 64 45 207 35 Move 13514 | 43 539 350 562 613 502 668 80 491 51 91 290 417 301 180 779 751 469 674 704 370 320 869 881 669 170 1007 673 Hop . | . . . . . . . . . . . . . . . . . . . . . . . . . . . . Pick Up 131 | 1 25 14 15 7 1 5 . 1 . 10 5 . 1 3 1 8 . . 3 . 4 7 8 6 2 3 1 Fast Attach 74 | 2 1 2 1 2 . 4 . . . 3 1 . . 5 1 5 . 1 5 2 5 7 15 3 4 3 2 Attach 62 | . 2 5 3 5 3 2 . . 2 . 2 . . . . 10 . . 2 . 3 1 8 5 1 4 4 Detach 14 | . . . . . . . . . . 1 . . . . . 1 . . 2 . 1 1 6 . . 2 . Swap 266 | . 9 7 15 28 10 14 2 13 3 4 7 5 6 5 17 16 8 5 3 2 6 6 32 4 1 18 20 Drop 194 | 1 10 17 28 14 . 4 . 2 1 12 3 . 1 7 4 19 . 1 9 2 7 14 17 8 5 6 2 Fire 395 | 3 37 39 42 84 13 32 . 12 . 6 3 6 2 . 21 4 4 15 1 . 4 9 16 5 . 11 26 Melee 300 | . . . . . 1 2 . . . . 5 . . 3 1 37 3 6 12 2 12 33 48 37 2 49 47 Ram . | . . . . . . . . . . . . . . . . . . . . . . . . . . . . Kick . | . . . . . . . . . . . . . . . . . . . . . . . . . . . . Crush . | . . . . . . . . . . . . . . . . . . . . . . . . . . . . Escape Stasis 17 | . . . . . . . . . . 16 . . . . . . . . . . . . 1 . . . . Rewire . | . . . . . . . . . . . . . . . . . . . . . . . . . . . . Trap . | . . . . . . . . . . . . . . . . . . . . . . . . . . . . Miscellaneous . | . . . . . . . . . . . . . . . . . . . . . . . . . . . . Route ------- -11/Scrapyard -10/Materials (discovered 3 exits: *Mat x2 / [*Min]) -9/Materials -8/Materials -7/Factory (discovered 4 exits: *Sto x2 / *Low x2) -7/Lower Caves -7/Lower Caves -7/Data Miner -6/Proximity Caves -6/Factory (discovered 2 exits: Fac / DSF) -6/DSF -5/Factory -5/Upper Caves -5/Upper Caves (discovered 2 exits: *Fac / *Zhi) -5/Zhirov -4/Proximity Caves -4/Factory (discovered 3 exits: *Res / *Upp x2) -4/Upper Caves -4/Upper Caves -4/Warlord -3/Proximity Caves -3/Research (discovered 2 exits: Arm / *Qua) -3/Quarantine (discovered 2 exits: *Res / *Sec) -3/Section 7 -2/Research -2/Testing -1/Access -1/Command History --------- Turn | Location | Event 1 | -11/Scrapyard | Discovered new exit (range 3) 63 | -11/Scrapyard | Entered Materials 152 | -10/Materials | Discovered new exit (range 16) 316 | -10/Materials | Discovered new exit (range 13) 327 | -10/Materials | Build established: Mutant 658 | -10/Materials | Repaired Lrg. Storage Unit 1006 | -10/Materials | Discovered new exit (range 16) 1036 | -10/Materials | Entered another Materials area 1036 | -9/Materials | Evolved 2 slots: Propulsion x1, Utility x1 1584 | -9/Materials | Discovered new exit (range 5) 1827 | -9/Materials | Build established: Scavenger-Mutant 2017 | -9/Materials | Entered another Materials area 2017 | -8/Materials | Evolved 2 slots: Propulsion x1, Utility x1 3208 | -8/Materials | Discovered new exit (range 15) 3400 | -8/Materials | Entered Factory 3400 | -7/Factory | Evolved 2 slots: Propulsion x1, Utility x1 3685 | -7/Factory | Identified exit to Storage 3685 | -7/Factory | Identified exit to Lower Caves 3822 | -7/Factory | Garrison activated, responded to threat 4687 | -7/Factory | Entered Lower Caves 4971 | -7/Lower Caves | Attracted the attention of an 0b10 checkpoint 5028 | -7/Lower Caves | Lost 3 parts (1n1u1w) 5351 | -7/Lower Caves | Build established: Skirmisher 5351 | -7/Lower Caves | Learned Factory stockpile data 5489 | -7/Lower Caves | Discovered new exit (range 5) 5509 | -7/Lower Caves | Identified exit to Lower Caves 5512 | -7/Lower Caves | Entered another Lower Caves area 5821 | -7/Lower Caves | Build established: Mutant 6184 | -7/Lower Caves | Build established: Scavenger-Mutant 6543 | -7/Lower Caves | Spotted B-75 Beast 6790 | -7/Lower Caves | Lost 3 parts (1p1n1u) 6834 | -7/Lower Caves | Attracted the attention of an 0b10 checkpoint 6890 | -7/Lower Caves | Discovered new exit (range 10) 6932 | -7/Lower Caves | Identified exit to Data Miner 6935 | -7/Lower Caves | Entered Data Miner 6935 | -7/Data Miner | Discovered new exit (range 6) 6941 | -7/Data Miner | Identified exit to Proximity Caves 6963 | -7/Data Miner | Met Data Miner 6993 | -7/Data Miner | Learned location of Section 7 (-3) 6993 | -7/Data Miner | Acquired the access code to Warlord's prototype stash 7018 | -7/Data Miner | Received God Mode back door access code from Data Miner 7054 | -7/Data Miner | Entered Proximity Caves 7342 | -6/Proximity Caves | Escorted by Enhanced Grunt 7342 | -6/Proximity Caves | Attracted the attention of an 0b10 checkpoint 7422 | -6/Proximity Caves | Learned 12 Factory zone layouts 7709 | -6/Proximity Caves | Discovered new exit (range 11) 7729 | -6/Proximity Caves | Identified exit to Factory 7832 | -6/Proximity Caves | Entered Factory 7832 | -6/Factory | Accompanied by 1 ally 7832 | -6/Factory | Evolved 2 slots: Propulsion x1, Utility x1 7833 | -6/Factory | Identified exit to Factory 7898 | -6/Factory | Identified exit to DSF 7898 | -6/Factory | Entered DSF 7898 | -6/DSF | Accompanied by 1 ally 7960 | -6/DSF | Additional patrols routed to DSF 8045 | -6/DSF | Discovered exit to Factory (range 15) 8075 | -6/DSF | Entered Factory 8075 | -5/Factory | Accompanied by 1 ally 8075 | -5/Factory | Evolved 2 slots: Utility x2 8283 | -5/Factory | Discovered new exit (range 4) 8286 | -5/Factory | Identified exit to Upper Caves 8370 | -5/Factory | Repaired Arm. Huge Wheel? 8498 | -5/Factory | Entered Upper Caves 8498 | -5/Upper Caves | Accompanied by 1 ally 8741 | -5/Upper Caves | Attracted the attention of an 0b10 checkpoint 8806 | -5/Upper Caves | Build established: Scavenger-Skirmisher 8895 | -5/Upper Caves | Discovered new exit (range 12) 9019 | -5/Upper Caves | Identified exit to Upper Caves 9025 | -5/Upper Caves | Entered another Upper Caves area 9025 | -5/Upper Caves | Accompanied by 1 ally 9127 | -5/Upper Caves | Discovered new exit (range 13) 9401 | -5/Upper Caves | Learned Factory terminal intel 9436 | -5/Upper Caves | Discovered new exit (range 13) 9450 | -5/Upper Caves | Identified exit to Zhirov 9460 | -5/Upper Caves | Entered Zhirov 9460 | -5/Zhirov | Accompanied by 1 ally 9460 | -5/Zhirov | Discovered new exit (range 3) 9462 | -5/Zhirov | Identified exit to Proximity Caves 9481 | -5/Zhirov | Met Zhirov 9502 | -5/Zhirov | Learned location of Quarantine (-3) 9502 | -5/Zhirov | Learned location of Testing (-2) 9502 | -5/Zhirov | Learned location of Command (-1) 9523 | -5/Zhirov | Zhirov requested help retrieving the SGEMP Prototype 9541 | -5/Zhirov | Found Alien Artifact 9541 | -5/Zhirov | Identified Integrated Reactor 9541 | -5/Zhirov | Installed Integrated Reactor, increased core energy generation (+10) 9616 | -5/Zhirov | Found Alien Artifact 9714 | -5/Zhirov | Entered Proximity Caves 9714 | -4/Proximity Caves | Accompanied by 1 ally 9974 | -4/Proximity Caves | Learned Research terminal intel 9990 | -4/Proximity Caves | Learned location of 1 exit from Research 9994 | -4/Proximity Caves | Learned location of 1 exit from Upper Caves 10009 | -4/Proximity Caves | Build established: Skirmisher 10696 | -4/Proximity Caves | Found Prototype Device 10696 | -4/Proximity Caves | Identified Exp. Thermal Shield 10848 | -4/Proximity Caves | Attracted the attention of an 0b10 checkpoint 10902 | -4/Proximity Caves | Discovered new exit (range 15) 10919 | -4/Proximity Caves | Identified exit to Factory 11017 | -4/Proximity Caves | Entered Factory 11017 | -4/Factory | Evolved 2 slots: Power x1, Propulsion x1 11018 | -4/Factory | Loaded intel: 26 terminal locations 11129 | -4/Factory | Allied Derelicts emerged from ambush trap array 11137 | -4/Factory | Discovered new exit (range 5) 11138 | -4/Factory | Identified exit to Research 11178 | -4/Factory | Fabricated Enh. Nova Cannon? 11266 | -4/Factory | Identified exit to Upper Caves 11508 | -4/Factory | Entered Upper Caves 11509 | -4/Upper Caves | Identified exit to Upper Caves 11669 | -4/Upper Caves | Encountered a Warlord checkpoint 11779 | -4/Upper Caves | Entered another Upper Caves area 11803 | -4/Upper Caves | Build established: Scavenger-Scout 11890 | -4/Upper Caves | Learned Research emergency access door positions 12067 | -4/Upper Caves | Spotted B-86 Titan 12286 | -4/Upper Caves | Discovered new exit (range 13) 12290 | -4/Upper Caves | Identified exit to Warlord 12290 | -4/Upper Caves | Entered Warlord 12312 | -4/Warlord | Discovered new exit (range 14) 12465 | -4/Warlord | Met Warlord 12467 | -4/Warlord | Opened Warlord's prototype stash 12470 | -4/Warlord | Found Prototype Device 12470 | -4/Warlord | Identified System Purifier 12477 | -4/Warlord | Found Prototype Reactor 12477 | -4/Warlord | Identified Vortex Chain Reactor 12490 | -4/Warlord | Warlord's base attacked by MAIN.C 12517 | -4/Warlord | Found Prototype Energy Cannon 12517 | -4/Warlord | Identified Vortex Cannon 12632 | -4/Warlord | Opened side exit 12641 | -4/Warlord | Identified exit to Proximity Caves 12643 | -4/Warlord | Entered Proximity Caves 12802 | -3/Proximity Caves | Discovered exit to Research (range 14) 12815 | -3/Proximity Caves | Entered Research 12815 | -3/Research | Evolved 2 slots: Propulsion x1, Utility x1 12816 | -3/Research | Identified exit to Armory 12817 | -3/Research | Identified exit to Quarantine 12819 | -3/Research | Loaded intel: 23 terminal locations 12894 | -3/Research | Found Prototype Processor 12894 | -3/Research | Identified Exp. Target Analyzer 12950 | -3/Research | Found Enh. Force Lance 12973 | -3/Research | Entered Quarantine 13014 | -3/Quarantine | Found Enh. Force Lance 13048 | -3/Quarantine | Build established: Scout 13065 | -3/Quarantine | Found Alien Reactor 13065 | -3/Quarantine | Identified Matter Drive 13085 | -3/Quarantine | Found Alien Impact Weapon 13153 | -3/Quarantine | Discovered new exit (range 14) 13159 | -3/Quarantine | Found Alien Artifact 13195 | -3/Quarantine | Found Prototype Processor 13195 | -3/Quarantine | Identified Exp. Signal Interpreter 13362 | -3/Quarantine | Spotted Fortress 13383 | -3/Quarantine | Discovered new exit (range 6) 13385 | -3/Quarantine | Identified exit to Section 7 13385 | -3/Quarantine | Entered Section 7 13405 | -3/Section 7 | Found Alien Artifact 13465 | -3/Section 7 | Found Alien Artifact 13465 | -3/Section 7 | Identified Integrated Mediator 13465 | -3/Section 7 | Installed Integrated Mediator, increased core attachment efficiency. 13479 | -3/Section 7 | Identified Spacefold Activator 13550 | -3/Section 7 | Found Alien Artifact 13550 | -3/Section 7 | Identified Integrated Dissipator 13550 | -3/Section 7 | Installed Integrated Dissipator, increased core heat dissipation (+20) 13571 | -3/Section 7 | Spotted S7 Guard 13587 | -3/Section 7 | Found Alien Artifact 13587 | -3/Section 7 | Identified Core Regenerator 13587 | -3/Section 7 | Used Core Regenerator, restored core integrity (+42) 13613 | -3/Section 7 | Identified Core Stripper 13805 | -3/Section 7 | Spotted B-99 Colossus 13831 | -3/Section 7 | Found Alien Artifact 13831 | -3/Section 7 | Identified Integrity Redistributor 13831 | -3/Section 7 | Used Integrity Redistributor, redistributed integrity from core (-49) 13834 | -3/Section 7 | Found Integrity Redistributor 13847 | -3/Section 7 | Found Alien Artifact 13847 | -3/Section 7 | Identified LRC Matter Compressor 13847 | -3/Section 7 | Installed LRC Matter Compressor, increased matter storage capacity (+125) 13949 | -3/Section 7 | Spotted Alpha 7 13950 | -3/Section 7 | Spotted Alpha 7 13953 | -3/Section 7 | Spotted B-86 Titan 14052 | -3/Section 7 | Found Integrated Dissipator 14052 | -3/Section 7 | Installed Integrated Dissipator, increased core heat dissipation (+20) 14105 | -3/Section 7 | Discovered new exit (range 9) 14108 | -3/Section 7 | Identified exit to Research 14109 | -3/Section 7 | Identified Subatomic Replicator 14109 | -3/Section 7 | Used Subatomic Replicator to replicate Integrity Redistributor 14119 | -3/Section 7 | Used Integrity Redistributor, redistributed integrity from core (-82) 14120 | -3/Section 7 | Core integrity fell below 50% 14121 | -3/Section 7 | Entered Research 14121 | -2/Research | Warlord forces began assault on 0b10 14121 | -2/Research | Evolved 2 slots: Propulsion x1, Weapon x1 14231 | -2/Research | Research machine network offline 14314 | -2/Research | Discovered new exit (range 10) 14316 | -2/Research | Identified exit to Testing 14374 | -2/Research | Met up with Warlord 14473 | -2/Research | Build established: Infiltrator-Ninja 14543 | -2/Research | Entered Testing 14588 | -2/Testing | Spotted PX-MTRXX1IHKQ 14640 | -2/Testing | Discovered new exit (range 19) 14652 | -2/Testing | Identified exit to Access 14663 | -2/Testing | Entered Access 14663 | -1/Access | Evolved 2 slots: Utility x1, Weapon x1 15208 | -1/Access | Identified exit to Command 15371 | -1/Access | Central database locked down 15399 | -1/Access | Entered Command 15399 | -1/Command | Accompanied by 1 ally 15496 | -1/Command | Phase Generator disabled 15643 | -1/Command | Spotted Combat Programmer 15683 | -1/Command | Met MAIN.C 15686 | -1/Command | 0b10 Conduit disabled 15728 | -1/Command | System corruption reached 10% 15745 | -1/Command | Destroyed MAIN.C Shell 15748 | -1/Command | MAIN.C activated Command garrisons 15758 | -1/Command | Used Integrity Redistributor, redistributed integrity from core (-177) 15759 | -1/Command | Core integrity fell below 50% 15761 | -1/Command | Spotted Combat Programmer 15824 | -1/Command | Core integrity fell below 20% 15869 | -1/Command | Destroyed by P-80 Master with Gamma Rifle Last Messages --------------- 15839_ Spacefolded through Wall. 15840_ Spacefolded through Recycling Unit. 15848_ Recycling Unit disabled. 15850_ Terminal disabled. 15850_ Door malfunctions. 15850_ Penetrated by EMDS Slug. 15852_ P-80 Master resets P-80 Master, system corruption cleaned. 15854_ EMDS Slug penetrates MAIN.C. 15860_ System corrupted: Substantial component data lost. 15861_ Slug penetrates Wall. 15862_ Y-72 Warden destroyed. 15862_ Penetrated by EMDS Slug. 15865_ Spacefolded through MAIN.C. 15865_ Door malfunctions. 15866_ Adv. Reaction Control System destroyed. 15866_ Cld. Antigrav System destroyed. 15866_ Knocked back. 15867_ Penetrated by EMDS Slug. 15868_ P-80 Master resets P-80 Master, system corruption cleaned. 15869_ EMDS Slug penetrates Wall. Map ----- +----------------------------------------------------+ | ????#??#???#?#?????????####???????#?#???#????????? | | ????#??????#?##?#????#??#???#?#???#??????????????? | | ?#???????????????#?##??#?###??#?????#????????????? | | ?#???#?????????###??###??#?#???#??#??????#?##????? | | #???????#?##??#??????##?#?#?#?##?????????????????? | | ??????##????##??#?#????#???##?#?###?#?##????#????? | | #?????#??#?????#?##???#???###?##??#????##?#?##???? | | ??????#?##??????#?#?#????##?#????#?#???##????????? | | ?#???????##???#?#?##???#####?????##???#??????#???? | | ????#?#???????##?????##????#???#?##?#?????##??#??? | | ?????#?#???#?##??#?????#?#?##?????#???#???#??????? | | ???##?#??###?##?#?#??#?#?#?##???#?###????##??##?#? | | ??##??################??##?????##??#?????????????? | | ##????# ######???#??#?#???####?#??#?? | | ??????# #?????####?#?##?#???#??#???#? | | ????### #########?????#??#?#???#??#?? | | ?#?#### ! [ + [## #########?????#####?? | | ????#?# ###;[## #???#?#?##?#?### | | ??#??## ####%## ! ##?##?##?##?#?#? | | ??###?########+#"#######ppM% ##?##???#?###??? | | ?#?#?######## / ###??###???#?##? | | ??#??###??#?# ####p "H ! ##?##?#?##?????? | | ??#?##?##?### #?### ## ##???##?#?#????? | | ?????#?#??#" ##### #?#+######??#?###?##???? | | ???#?######"" ##?## #?# #??#?###????###??#?# | | ??#?#####?#"" #?###@#?# #?###??####????###?# | | #?#?##?####"" #####p###+#??##??#####?????#?? | | #??#?######" # ! ###??#??##???#??#??? | | #?#?##?####"T # % /#####?##?#####???### | | ?#?#?###??#"" # ! #?#?##?####?#?#?#??# | | ?#??#####?#"" # ###?##??##??###???## | | #??###?#?##"" / ""Y"" ###?##??#######?#??? | | ?###??#?###"" # """" ##??##?####???#??#?? | | ?#???#????#" # ######?#?#???###???? | | ###?#??##?### # ##?#??#######??##??? | | ?#?##?#?#??## !!###+###########?#?##?##?#?#?## | | ?#?#?###??### !=#?# ###?#####?##?#???##? | | ##??###?##?## ### ####???##????#####?? | | #???###??##?# #" "###?###?##??#####? | | #???#??###??# #"" ""#?####?#?#??##?#?# | | ??#???##??### #"" ""######??????#??#?? | | ??##??####??# #"" ""##??##??????###### | | ??########### #"" ""#?###?##?#### | | ?????# # #"T T"#????###??#?# | | #??###! # #"" ""###??#?#??#?# | | ###??# # #"" ""##?###?##??## | | #?## # #"" ""######????##? | | = #### + #"" ""## ########### # | | #### # #" "## " % # | | ########### ### ###### / | +----------------------------------------------------+ Best States ------------- Heat Dissipation 92 Energy Generation 65 Energy Capacity 700 Matter Stores 425 Matter Capacity 800 Sight Range 16 Robot Scan Range 16 Terrain Scan Range 24 Terrain Scan Density 210 ECM Strength 2 Jamming Range 16 Cloak Strength 3 Armor Coverage 675 Resistance: KI 20 Resistance: TH 30 Propulsion Shielding 90 Melee Speed Boost 50 Evasion (%) 70 Recoil Reduction 3 Defensive Hacking 24 Item Schematics ----------------- Huge Storage Unit | -10/Materials | Hacked Combat Drone Bay | -7/Data Miner | Free Lgt. Regenerative Plating | -7/Data Miner | Free Cld. Aerolev Unit | -7/Data Miner | Free Gravity Neutralizer | -7/Data Miner | Free Antimatter Cannon | -7/Data Miner | Free Gyrokinetic Inverter | -7/Data Miner | Free Adv. Drone Bay | -7/Data Miner | Free Imp. Remote Datajack | -7/Data Miner | Free Hvy. Pick | -7/Data Miner | Free Assault Drone Bay | -5/Zhirov | Free Exp. Heat Sink | -5/Zhirov | Free Exp. Optical Array | -5/Zhirov | Free Imp. Arc Thrower | -5/Zhirov | Free Cmb. Linear Gravjet | -3/Research | Hacked Tri-rail Accelerator | -2/Testing | Archive Robot Schematics ------------------ I-36 Angel | -7/Data Miner | Free R-10 Processor | -7/Data Miner | Free G-50 Soldier | -7/Data Miner | Free S-27 Virus | -7/Data Miner | Free B-60 Warrior | -7/Data Miner | Free X-72 Disruptor | -7/Data Miner | Free B-74 Champion | -2/Testing | Archive Fabricated ------------ Enh. Nova Cannon | x1 | -4/Factory | Preloaded Alien Tech Used ----------------- Integrated Reactor Matter Drive Integrated Mediator Spacefold Activator Integrated Dissipator Core Regenerator Core Stripper Integrity Redistributor LRC Matter Compressor Subatomic Replicator Achievements -------------- None Challenges ------------ None Game ------ Seed RagnarokShockReactor Manual? 0 Play Time 07:11:51 Cumulative 1290.0 hours Start 2022.04.22 @ 06:42:46 End 2022.04.30 @ 15:13:04 Sessions 47 Manual Loads 0 Difficulty Rogue Special Mode None Game No. 357 Rogue 357 Adventurer 0 Explorer 0 Win Type - Total 44 Types 27/6/7/3/0/0/0/1/0 Lore% 81 Gallery% 84 Achievement% 73 Wizard Run 0 Options --------- ASCII 0 Keyboard 1 Movement Numpad Keybinds 0 Fullscreen 1 Font 24/Crisp Map View 76x50 Tactical HUD 1 Map Filters NONE Filters NONE Steam 1 RUN: c61f7a36-9514-432c-8662-8db88f5ed994